[Event "Late-Titled-Tuesday-Blitz-March-05-2024"]
[Site "Chess.com"]
[Date "2024.03.05"]
[Round "1"]
[White "biostatistician"]
[Black "Felix-Rose"]
[Result "1/2-1/2"]
[WhiteElo "2595"]
[BlackElo "2294"]
[TimeControl "180+1"]
[EndTime "14:10:12 PST"]
[Termination "Game drawn by repetition"]

1. d4 {[%clk 0:02:59.8]} 1... d5 {[%clk 0:02:59.4]} 2. Nf3 {[%clk 0:02:59.5]}
2... Nf6 {[%clk 0:02:59.6]} 3. c4 {[%clk 0:02:59.8]} 3... e6 {[%clk 0:02:59.9]}
4. Bg5 {[%clk 0:02:59.7]} 4... Be7 {[%clk 0:03:00.2]} 5. e3 {[%clk 0:02:59.6]}
5... Nbd7 {[%clk 0:03:00.3]} 6. Nc3 {[%clk 0:02:59.9]} 6... h6 {[%clk
0:03:00.5]} 7. Bh4 {[%clk 0:02:59.9]} 7... O-O {[%clk 0:03:01]} 8. Rc1 {[%clk
0:02:59.2]} 8... c5 {[%clk 0:03:01.3]} 9. dxc5 {[%clk 0:02:58.5]} 9... dxc4
{[%clk 0:02:58.1]} 10. Bxc4 {[%clk 0:02:58.5]} 10... Nxc5 {[%clk 0:02:56.9]} 11.
Qe2 {[%clk 0:02:55.8]} 11... b6 {[%clk 0:02:56.2]} 12. O-O {[%clk 0:02:55]}
12... Bb7 {[%clk 0:02:56.6]} 13. Rfd1 {[%clk 0:02:55.1]} 13... Qe8 {[%clk
0:02:44.8]} 14. Nb5 {[%clk 0:02:45.1]} 14... Qc8 {[%clk 0:02:01.7]} 15. Bd3
{[%clk 0:01:28.2]} 15... a6 {[%clk 0:01:54.9]} 16. Nbd4 {[%clk 0:01:27.9]} 16...
Qe8 {[%clk 0:01:47.3]} 17. Bb1 {[%clk 0:01:25.6]} 17... Rc8 {[%clk 0:01:42.4]}
18. Ne5 {[%clk 0:01:14.4]} 18... Nce4 {[%clk 0:01:02.5]} 19. f3 {[%clk
0:00:58.2]} 19... Rxc1 {[%clk 0:01:01.5]} 20. Rxc1 {[%clk 0:00:58]} 20... Nc5
{[%clk 0:00:45.4]} 21. b4 {[%clk 0:00:56.3]} 21... Ncd7 {[%clk 0:00:42.8]} 22.
Nec6 {[%clk 0:00:56.5]} 22... Bd6 {[%clk 0:00:20.4]} 23. Qd3 {[%clk 0:00:49]}
23... Qa8 {[%clk 0:00:16.5]} 24. a4 {[%clk 0:00:36.3]} 24... Rc8 {[%clk
0:00:16]} 25. b5 {[%clk 0:00:36.7]} 25... axb5 {[%clk 0:00:16.5]} 26. axb5
{[%clk 0:00:37.6]} 26... Bf8 {[%clk 0:00:13.1]} 27. e4 {[%clk 0:00:32]} 27... g6
{[%clk 0:00:12.1]} 28. Bf2 {[%clk 0:00:27.4]} 28... Nc5 {[%clk 0:00:11.6]} 29.
Qe3 {[%clk 0:00:25.5]} 29... Bg7 {[%clk 0:00:11.8]} 30. Bg3 {[%clk 0:00:24.7]}
30... Kh7 {[%clk 0:00:11.5]} 31. Bf4 {[%clk 0:00:22.8]} 31... Ncd7 {[%clk
0:00:10.8]} 32. h4 {[%clk 0:00:21.4]} 32... e5 {[%clk 0:00:11.3]} 33. Nxe5
{[%clk 0:00:21.1]} 33... Rxc1+ {[%clk 0:00:11.5]} 34. Qxc1 {[%clk 0:00:21.2]}
34... Nxe5 {[%clk 0:00:10.9]} 35. Bxe5 {[%clk 0:00:22.1]} 35... Qd8 {[%clk
0:00:08.8]} 36. Qc7 {[%clk 0:00:21.6]} 36... Qxc7 {[%clk 0:00:09.1]} 37. Bxc7
{[%clk 0:00:22.5]} 37... Nd7 {[%clk 0:00:09.6]} 38. Ne2 {[%clk 0:00:22.2]} 38...
Bf6 {[%clk 0:00:08.2]} 39. Bd3 {[%clk 0:00:22.3]} 39... Bxh4 {[%clk 0:00:08]}
40. Bc4 {[%clk 0:00:21]} 40... Kg7 {[%clk 0:00:08]} 41. Kf1 {[%clk 0:00:21]}
41... Be7 {[%clk 0:00:08.5]} 42. Kf2 {[%clk 0:00:20.8]} 42... Bc5+ {[%clk
0:00:09.2]} 43. Ke1 {[%clk 0:00:21.1]} 43... Kf6 {[%clk 0:00:08.5]} 44. Kd2
{[%clk 0:00:21.4]} 44... Ke7 {[%clk 0:00:09.1]} 45. Kd3 {[%clk 0:00:21.5]} 45...
f6 {[%clk 0:00:09.6]} 46. Bg3 {[%clk 0:00:21.4]} 46... Ne5+ {[%clk 0:00:09.8]}
47. Bxe5 {[%clk 0:00:21.1]} 47... fxe5 {[%clk 0:00:10.7]} 48. Nc3 {[%clk
0:00:22]} 48... h5 {[%clk 0:00:11.1]} 49. Bd5 {[%clk 0:00:22.3]} 49... Bc8
{[%clk 0:00:11.1]} 50. Bc6 {[%clk 0:00:22.4]} 50... Be6 {[%clk 0:00:11.5]} 51.
Nd5+ {[%clk 0:00:23.3]} 51... Bxd5 {[%clk 0:00:12.2]} 52. Bxd5 {[%clk
0:00:23.7]} 52... Kf6 {[%clk 0:00:12.5]} 53. Bc6 {[%clk 0:00:24.1]} 53... g5
{[%clk 0:00:12.9]} 54. Be8 {[%clk 0:00:21.9]} 54... h4 {[%clk 0:00:12.6]} 55.
Bh5 {[%clk 0:00:22.4]} 55... Ke7 {[%clk 0:00:11.7]} 56. Kc4 {[%clk 0:00:22.2]}
56... Kd6 {[%clk 0:00:12.4]} 57. Bg4 {[%clk 0:00:22.1]} 57... Be3 {[%clk
0:00:12.5]} 58. Bf5 {[%clk 0:00:21.5]} 58... Bd4 {[%clk 0:00:13.1]} 59. Bg4
{[%clk 0:00:21.9]} 59... Bc5 {[%clk 0:00:13.8]} 60. Bh3 {[%clk 0:00:22.4]} 60...
Bd4 {[%clk 0:00:14.4]} 61. Bc8 {[%clk 0:00:22.1]} 61... Bc5 {[%clk 0:00:14.6]}
62. Bb7 {[%clk 0:00:23]} 62... Bd4 {[%clk 0:00:14.7]} 63. Bc6 {[%clk 0:00:22.8]}
63... Bc5 {[%clk 0:00:14.8]} 64. Kd3 {[%clk 0:00:23.7]} 64... Bd4 {[%clk
0:00:14.9]} 65. Ke2 {[%clk 0:00:24.6]} 65... Ke6 {[%clk 0:00:14.9]} 66. Kf1
{[%clk 0:00:25.5]} 66... Kf6 {[%clk 0:00:15.4]} 67. Ke1 {[%clk 0:00:25.5]} 67...
Ke6 {[%clk 0:00:16]} 68. Kd2 {[%clk 0:00:26.4]} 68... Kd6 {[%clk 0:00:16.2]} 69.
Kd3 {[%clk 0:00:27.3]} 69... Bc5 {[%clk 0:00:16.7]} 70. Kc4 {[%clk 0:00:28.2]}
70... Bd4 {[%clk 0:00:17.1]} 71. Be8 {[%clk 0:00:27.9]} 71... Bc5 {[%clk
0:00:17.6]} 72. Bh5 {[%clk 0:00:28.1]} 72... Be3 {[%clk 0:00:17.8]} 73. Bg4
{[%clk 0:00:28.2]} 73... Bf2 {[%clk 0:00:18.3]} 74. Kd3 {[%clk 0:00:28.5]} 74...
Bg1 {[%clk 0:00:18.7]} 75. Ke2 {[%clk 0:00:29.4]} 75... Bc5 {[%clk 0:00:19]} 76.
Kf1 {[%clk 0:00:28.9]} 76... Be3 {[%clk 0:00:18.8]} 77. Bf5 {[%clk 0:00:29.2]}
77... Kc5 {[%clk 0:00:19]} 78. Bd7 {[%clk 0:00:29.4]} 78... Kd4 {[%clk
0:00:18.4]} 79. Ke2 {[%clk 0:00:28.9]} 79... Bf4 {[%clk 0:00:18.6]} 80. Bc6
{[%clk 0:00:28.3]} 80... Kc3 {[%clk 0:00:19]} 81. Kf1 {[%clk 0:00:28.3]} 81...
Kd2 {[%clk 0:00:19.2]} 82. Kg1 {[%clk 0:00:28.9]} 82... Ke3 {[%clk 0:00:19.3]}
83. Kf1 {[%clk 0:00:29.8]} 83... h3 {[%clk 0:00:19.8]} 84. gxh3 {[%clk
0:00:30.2]} 84... Kxf3 {[%clk 0:00:20.5]} 85. Kg1 {[%clk 0:00:28.9]} 85... Kg3
{[%clk 0:00:17.9]} 86. Bd7 {[%clk 0:00:29]} 86... Kf3 {[%clk 0:00:18]} 87. Bf5
{[%clk 0:00:28.9]} 87... Ke3 {[%clk 0:00:18.6]} 88. Kg2 {[%clk 0:00:29]} 88...
Kd4 {[%clk 0:00:17.6]} 89. Kf3 {[%clk 0:00:29.9]} 89... Bc1 {[%clk 0:00:17.1]}
90. Bd7 {[%clk 0:00:29.4]} 90... Kc5 {[%clk 0:00:16.7]} 91. Bc6 {[%clk
0:00:29.8]} 91... Bd2 {[%clk 0:00:16.9]} 92. Be8 {[%clk 0:00:30.7]} 92... Bc1
{[%clk 0:00:17.4]} 93. Bc6 {[%clk 0:00:30]} 93... Kd4 {[%clk 0:00:17.8]} 94. Kg4
{[%clk 0:00:30.9]} 94... Kd3 {[%clk 0:00:17.4]} 95. Kf5 {[%clk 0:00:31.4]} 95...
Bf4 {[%clk 0:00:16.9]} 96. Bd7 {[%clk 0:00:30.5]} 96... Kc4 {[%clk 0:00:16.4]}
97. Bc6 {[%clk 0:00:30.5]} 97... Kd4 {[%clk 0:00:17.1]} 98. Bd7 {[%clk
0:00:30.5]} 98... Ke3 {[%clk 0:00:17.6]} 99. Bc6 {[%clk 0:00:29.7]} 99... Kf3
{[%clk 0:00:18]} 100. Bd7 {[%clk 0:00:29.9]} 100... Kg3 {[%clk 0:00:17.9]} 101.
Kf6 {[%clk 0:00:28.2]} 101... Kf3 {[%clk 0:00:18]} 102. Bf5 {[%clk 0:00:28.6]}
102... Kg2 {[%clk 0:00:18.1]} 103. Ke6 {[%clk 0:00:28.6]} 103... Kg3 {[%clk
0:00:18.1]} 104. Kd5 {[%clk 0:00:29.1]} 104... Kf3 {[%clk 0:00:18.6]} 105. Kc6
{[%clk 0:00:29.4]} 105... Be3 {[%clk 0:00:19.1]} 106. Kd5 {[%clk 0:00:30]}
106... Bd4 {[%clk 0:00:19.7]} 107. Bg4+ {[%clk 0:00:28.7]} 107... Kf4 {[%clk
0:00:20]} 108. Bf5 {[%clk 0:00:29.6]} 108... Bc5 {[%clk 0:00:19.6]} 109. Bg4
{[%clk 0:00:30.5]} 109... Bd4 {[%clk 0:00:20.2]} 110. Bf5 {[%clk 0:00:31.4]}
110... Bc5 {[%clk 0:00:20.7]} 111. Bg4 {[%clk 0:00:32.3]} 111... Bd4 {[%clk
0:00:21.2]} 1/2-1/2

[Event "Late-Titled-Tuesday-Blitz-March-05-2024"]
[Site "Chess.com"]
[Date "2024.03.05"]
[Round "1"]
[White "XDPS"]
[Black "JackRodgers"]
[Result "1/2-1/2"]
[WhiteElo "2900"]
[BlackElo "2515"]
[TimeControl "180+1"]
[EndTime "14:10:19 PST"]
[Termination "Game drawn - insufficient material"]

1. d4 {[%clk 0:03:00.9]} 1... Nf6 {[%clk 0:02:59.3]} 2. Bf4 {[%clk 0:03:00.5]}
2... c5 {[%clk 0:02:58]} 3. e3 {[%clk 0:02:56.4]} 3... e6 {[%clk 0:02:56.4]} 4.
Nf3 {[%clk 0:02:55.4]} 4... Be7 {[%clk 0:02:55.7]} 5. Nbd2 {[%clk 0:02:55.6]}
5... O-O {[%clk 0:02:55.4]} 6. Bd3 {[%clk 0:02:55.1]} 6... Nc6 {[%clk
0:02:52.4]} 7. c3 {[%clk 0:02:54.5]} 7... b6 {[%clk 0:02:52.3]} 8. O-O {[%clk
0:02:52]} 8... Bb7 {[%clk 0:02:52.2]} 9. Re1 {[%clk 0:02:52]} 9... d5 {[%clk
0:02:50.9]} 10. Ne5 {[%clk 0:02:51.9]} 10... Rc8 {[%clk 0:02:50.3]} 11. Qf3
{[%clk 0:02:51.7]} 11... Nd7 {[%clk 0:02:36.2]} 12. Qh3 {[%clk 0:02:51.1]} 12...
f5 {[%clk 0:02:32.3]} 13. Ndf3 {[%clk 0:02:41.8]} 13... Ncxe5 {[%clk 0:02:14.1]}
14. Nxe5 {[%clk 0:02:42.7]} 14... Nxe5 {[%clk 0:02:05.4]} 15. Bxe5 {[%clk
0:02:43.6]} 15... Bd6 {[%clk 0:02:02.1]} 16. Qg3 {[%clk 0:02:42.3]} 16... Bxe5
{[%clk 0:01:56.6]} 17. Qxe5 {[%clk 0:02:43.2]} 17... Qf6 {[%clk 0:01:57.2]} 18.
Qxf6 {[%clk 0:02:27.4]} 18... Rxf6 {[%clk 0:01:58.1]} 19. Bb5 {[%clk 0:02:25.4]}
19... Bc6 {[%clk 0:01:55.7]} 20. Bf1 {[%clk 0:02:24.3]} 20... f4 {[%clk
0:01:50.6]} 21. Rad1 {[%clk 0:02:15.9]} 21... fxe3 {[%clk 0:01:48.4]} 22. Rxe3
{[%clk 0:02:15.7]} 22... cxd4 {[%clk 0:01:44.6]} 23. Rxd4 {[%clk 0:02:14.9]}
23... Re8 {[%clk 0:01:43.2]} 24. f4 {[%clk 0:02:14.6]} 24... Kf7 {[%clk
0:01:32.4]} 25. g3 {[%clk 0:02:13.6]} 25... b5 {[%clk 0:01:25.1]} 26. Bd3 {[%clk
0:02:10.9]} 26... g6 {[%clk 0:01:20.5]} 27. h4 {[%clk 0:02:08.7]} 27... Ke7
{[%clk 0:01:20.2]} 28. Re5 {[%clk 0:02:08]} 28... Kd6 {[%clk 0:01:19.5]} 29. Bc2
{[%clk 0:02:07.3]} 29... a5 {[%clk 0:01:17.1]} 30. a3 {[%clk 0:02:06.9]} 30...
Kc5 {[%clk 0:01:15.5]} 31. h5 {[%clk 0:02:00.8]} 31... gxh5 {[%clk 0:01:03.1]}
32. Rxh5 {[%clk 0:02:00.4]} 32... h6 {[%clk 0:01:03]} 33. Re5 {[%clk 0:01:57.8]}
33... Rg8 {[%clk 0:00:58.4]} 34. Kf2 {[%clk 0:01:58.2]} 34... Be8 {[%clk
0:00:58]} 35. Bd3 {[%clk 0:01:55.9]} 35... Bg6 {[%clk 0:00:54.8]} 36. Be2 {[%clk
0:01:55.2]} 36... Bf5 {[%clk 0:00:53]} 37. Re3 {[%clk 0:01:48.5]} 37... Rf7
{[%clk 0:00:30.6]} 38. Rd1 {[%clk 0:01:35]} 38... Rf6 {[%clk 0:00:26.7]} 39. Rh1
{[%clk 0:01:32.9]} 39... Rb8 {[%clk 0:00:22.3]} 40. b4+ {[%clk 0:01:31.3]} 40...
axb4 {[%clk 0:00:22.2]} 41. axb4+ {[%clk 0:01:32.2]} 41... Kd6 {[%clk
0:00:22.7]} 42. Ra1 {[%clk 0:01:32.6]} 42... Rb6 {[%clk 0:00:17.7]} 43. Ra7
{[%clk 0:01:32.6]} 43... Rg6 {[%clk 0:00:16.6]} 44. Re5 {[%clk 0:01:27.9]} 44...
Kc6 {[%clk 0:00:11.8]} 45. Bf3 {[%clk 0:01:23.7]} 45... Kd6 {[%clk 0:00:11.8]}
46. Re3 {[%clk 0:01:10.8]} 46... Rf6 {[%clk 0:00:10.9]} 47. g4 {[%clk
0:01:09.9]} 47... Bc2 {[%clk 0:00:10.9]} 48. Kg3 {[%clk 0:01:10.4]} 48... Rg6
{[%clk 0:00:10.7]} 49. Ra8 {[%clk 0:01:05.8]} 49... Rb7 {[%clk 0:00:10.2]} 50.
Rd8+ {[%clk 0:01:03.5]} 50... Rd7 {[%clk 0:00:09.7]} 51. Rb8 {[%clk 0:01:02.1]}
51... Rdg7 {[%clk 0:00:07.5]} 52. Rb6+ {[%clk 0:00:55.6]} 52... Kd7 {[%clk
0:00:07.8]} 53. Rxb5 {[%clk 0:00:55.4]} 53... Bf5 {[%clk 0:00:07.8]} 54. Rb7+
{[%clk 0:00:55.9]} 54... Kc6 {[%clk 0:00:06.7]} 55. Rxg7 {[%clk 0:00:56.8]}
55... Rxg7 {[%clk 0:00:07.6]} 56. c4 {[%clk 0:00:55.1]} 56... Kd6 {[%clk
0:00:06.3]} 57. cxd5 {[%clk 0:00:49.6]} 57... exd5 {[%clk 0:00:07.2]} 58. Re5
{[%clk 0:00:48.3]} 58... Be6 {[%clk 0:00:07.6]} 59. Rh5 {[%clk 0:00:44.9]} 59...
d4 {[%clk 0:00:06.7]} 60. Rxh6 {[%clk 0:00:44.7]} 60... Ke7 {[%clk 0:00:04.4]}
61. f5 {[%clk 0:00:44.5]} 61... Bxf5 {[%clk 0:00:04.8]} 62. b5 {[%clk
0:00:37.5]} 62... d3 {[%clk 0:00:04.2]} 63. b6 {[%clk 0:00:37.3]} 63... d2
{[%clk 0:00:04.4]} 64. Rh2 {[%clk 0:00:35.7]} 64... Bxg4 {[%clk 0:00:03]} 65.
Re2+ {[%clk 0:00:30.3]} 65... Kf6 {[%clk 0:00:02.6]} 66. Rxd2 {[%clk 0:00:28.8]}
66... Bxf3+ {[%clk 0:00:03]} 67. Kxf3 {[%clk 0:00:29.7]} 67... Rb7 {[%clk
0:00:03.7]} 68. Rd6+ {[%clk 0:00:21.7]} 68... Ke5 {[%clk 0:00:04.1]} 69. Rh6
{[%clk 0:00:22]} 69... Kd5 {[%clk 0:00:04.4]} 70. Ke3 {[%clk 0:00:22.8]} 70...
Kc5 {[%clk 0:00:05]} 71. Kd3 {[%clk 0:00:23.6]} 71... Rxb6 {[%clk 0:00:05.6]}
72. Rh5+ {[%clk 0:00:24.3]} 72... Kc6 {[%clk 0:00:06.2]} 73. Kc4 {[%clk
0:00:25]} 73... Kb7 {[%clk 0:00:06.5]} 74. Kc5 {[%clk 0:00:24.1]} 74... Ka6
{[%clk 0:00:06.8]} 75. Rh4 {[%clk 0:00:23.7]} 75... Rb5+ {[%clk 0:00:07.1]} 76.
Kc4 {[%clk 0:00:23.6]} 76... Ka5 {[%clk 0:00:07.1]} 77. Rh1 {[%clk 0:00:22.8]}
77... Rb4+ {[%clk 0:00:07.4]} 78. Kc5 {[%clk 0:00:23.5]} 78... Rb5+ {[%clk
0:00:07.8]} 79. Kc4 {[%clk 0:00:23.9]} 79... Rb4+ {[%clk 0:00:08.3]} 80. Kc3
{[%clk 0:00:24.5]} 80... Rb5 {[%clk 0:00:07.3]} 81. Rh4 {[%clk 0:00:23.9]} 81...
Kb6 {[%clk 0:00:07.3]} 82. Kc4 {[%clk 0:00:23.7]} 82... Ka5 {[%clk 0:00:07.2]}
83. Rh8 {[%clk 0:00:23.4]} 83... Rb4+ {[%clk 0:00:07.5]} 84. Kc3 {[%clk
0:00:24]} 84... Rb5 {[%clk 0:00:07.5]} 85. Rc8 {[%clk 0:00:23.4]} 85... Kb6
{[%clk 0:00:07.8]} 86. Kc4 {[%clk 0:00:23.5]} 86... Ra5 {[%clk 0:00:05.9]} 87.
Rh8 {[%clk 0:00:21.2]} 87... Ra4+ {[%clk 0:00:06.3]} 88. Kd5 {[%clk 0:00:21.4]}
88... Ra5+ {[%clk 0:00:06.7]} 89. Kc4 {[%clk 0:00:21.5]} 89... Rc5+ {[%clk
0:00:06.7]} 90. Kb4 {[%clk 0:00:21.9]} 90... Rc6 {[%clk 0:00:07.2]} 91. Rh7
{[%clk 0:00:21.5]} 91... Rf6 {[%clk 0:00:06.8]} 92. Rh4 {[%clk 0:00:20.8]} 92...
Rc6 {[%clk 0:00:06.7]} 93. Rg4 {[%clk 0:00:21.2]} 93... Rd6 {[%clk 0:00:07.3]}
94. Rf4 {[%clk 0:00:21.7]} 94... Kc6 {[%clk 0:00:07.8]} 95. Kc4 {[%clk
0:00:21.8]} 95... Re6 {[%clk 0:00:07.8]} 96. Rf5 {[%clk 0:00:22.1]} 96... Kd6
{[%clk 0:00:08.3]} 97. Ra5 {[%clk 0:00:22.1]} 97... Ke7 {[%clk 0:00:08.4]} 98.
Kd5 {[%clk 0:00:22.1]} 98... Kf6 {[%clk 0:00:08.9]} 99. Ra3 {[%clk 0:00:21.1]}
99... Re5+ {[%clk 0:00:09.2]} 100. Kd4 {[%clk 0:00:21.7]} 100... Rf5 {[%clk
0:00:09.7]} 101. Ke4 {[%clk 0:00:21.7]} 101... Re5+ {[%clk 0:00:10.3]} 102. Kf4
{[%clk 0:00:22.5]} 102... Rf5+ {[%clk 0:00:10.8]} 103. Kg4 {[%clk 0:00:23.2]}
103... Rg5+ {[%clk 0:00:11.3]} 104. Kh4 {[%clk 0:00:23.8]} 104... Re5 {[%clk
0:00:11.8]} 105. Ra6+ {[%clk 0:00:23.9]} 105... Kf5 {[%clk 0:00:12.3]} 106. Ra3
{[%clk 0:00:23.9]} 106... Re4+ {[%clk 0:00:12.7]} 107. Kh5 {[%clk 0:00:24.3]}
107... Kf4 {[%clk 0:00:12.6]} 108. Kg6 {[%clk 0:00:22.7]} 108... Re6+ {[%clk
0:00:12.3]} 109. Kf7 {[%clk 0:00:23.1]} 109... Re4 {[%clk 0:00:13.1]} 110. Ra5
{[%clk 0:00:22.3]} 110... Re5 {[%clk 0:00:12.9]} 111. Rxe5 {[%clk 0:00:22.6]}
111... Kxe5 {[%clk 0:00:12.7]} 1/2-1/2

[Event "Late-Titled-Tuesday-Blitz-March-05-2024"]
[Site "Chess.com"]
[Date "2024.03.05"]
[Round "2"]
[White "IMRosen"]
[Black "MaiqMaster"]
[Result "1-0"]
[WhiteElo "2672"]
[BlackElo "2323"]
[TimeControl "180+1"]
[EndTime "14:12:01 PST"]
[Termination "IMRosen won by resignation"]

1. d4 {[%clk 0:03:00.9]} 1... d5 {[%clk 0:02:59.8]} 2. Bf4 {[%clk 0:03:01.4]}
2... Nf6 {[%clk 0:02:59]} 3. e3 {[%clk 0:03:01.9]} 3... g6 {[%clk 0:02:55.2]} 4.
Nc3 {[%clk 0:03:01.1]} 4... Bg7 {[%clk 0:02:54.2]} 5. h4 {[%clk 0:03:01.5]} 5...
h5 {[%clk 0:02:53.9]} 6. Nf3 {[%clk 0:03:01.7]} 6... O-O {[%clk 0:02:54.1]} 7.
Ne5 {[%clk 0:03:02.1]} 7... c5 {[%clk 0:02:53.9]} 8. dxc5 {[%clk 0:03:03]} 8...
Qa5 {[%clk 0:02:51.5]} 9. Qd2 {[%clk 0:03:03.2]} 9... Qxc5 {[%clk 0:02:48.1]}
10. Na4 {[%clk 0:03:03]} 10... Qd6 {[%clk 0:02:20.6]} 11. Nxg6 {[%clk
0:03:01.9]} 11... Qd7 {[%clk 0:02:20.3]} 12. Nc5 {[%clk 0:02:55.5]} 12... Qc6
{[%clk 0:02:14.1]} 13. Nxe7+ {[%clk 0:02:55.5]} 1-0

[Event "Late-Titled-Tuesday-Blitz-March-05-2024"]
[Site "Chess.com"]
[Date "2024.03.05"]
[Round "2"]
[White "Vse_po_kaify"]
[Black "ACollins05"]
[Result "1-0"]
[WhiteElo "2397"]
[BlackElo "2585"]
[TimeControl "180+1"]
[EndTime "14:12:24 PST"]
[Termination "Vse_po_kaify won by resignation"]

1. Nf3 {[%clk 0:03:00.9]} 1... d5 {[%clk 0:02:56.4]} 2. e3 {[%clk 0:03:01]} 2...
Nf6 {[%clk 0:02:56.2]} 3. c4 {[%clk 0:03:01.2]} 3... e6 {[%clk 0:02:55.6]} 4. b3
{[%clk 0:03:01.7]} 4... dxc4 {[%clk 0:02:54.2]} 5. Bxc4 {[%clk 0:02:58.5]} 5...
Be7 {[%clk 0:02:54.7]} 6. Bb2 {[%clk 0:02:56.5]} 6... O-O {[%clk 0:02:55.2]} 7.
Qc2 {[%clk 0:02:53.8]} 7... a6 {[%clk 0:02:54.7]} 8. Ng5 {[%clk 0:02:49.4]} 8...
Nbd7 {[%clk 0:02:49.6]} 9. Nc3 {[%clk 0:02:46]} 9... b5 {[%clk 0:02:44]} 10. Bd3
{[%clk 0:02:35.9]} 10... h6 {[%clk 0:02:42.1]} 11. h4 {[%clk 0:02:31.8]} 11...
Bb7 {[%clk 0:02:40.3]} 12. Nce4 {[%clk 0:02:26.7]} 12... Nxe4 {[%clk 0:02:36.6]}
13. Bxe4 {[%clk 0:02:27]} 13... Qc8 {[%clk 0:02:29.6]} 14. Bxb7 {[%clk
0:02:24.5]} 1-0

[Event "Late-Titled-Tuesday-Blitz-March-05-2024"]
[Site "Chess.com"]
[Date "2024.03.05"]
[Round "2"]
[White "BogdanDeac"]
[Black "viniciusrego"]
[Result "1-0"]
[WhiteElo "2965"]
[BlackElo "2417"]
[TimeControl "180+1"]
[EndTime "14:13:45 PST"]
[Termination "BogdanDeac won by resignation"]

1. d4 {[%clk 0:03:00.9]} 1... g6 {[%clk 0:02:59.9]} 2. e4 {[%clk 0:03:00.5]}
2... Bg7 {[%clk 0:02:59.2]} 3. Nf3 {[%clk 0:03:01.2]} 3... c5 {[%clk 0:02:56]}
4. dxc5 {[%clk 0:03:00.3]} 4... Qa5+ {[%clk 0:02:52]} 5. c3 {[%clk 0:03:00.2]}
5... Qxc5 {[%clk 0:02:52.1]} 6. Be3 {[%clk 0:03:00.8]} 6... Qc7 {[%clk 0:02:52]}
7. Na3 {[%clk 0:03:01]} 7... a6 {[%clk 0:02:51.8]} 8. Nc4 {[%clk 0:03:00.6]}
8... b5 {[%clk 0:02:46.2]} 9. Nb6 {[%clk 0:02:59.3]} 9... Bb7 {[%clk 0:02:46.3]}
10. Nxa8 {[%clk 0:02:58.9]} 10... Bxa8 {[%clk 0:02:47.2]} 11. Bd3 {[%clk
0:02:58.7]} 11... Nf6 {[%clk 0:02:46.9]} 12. a4 {[%clk 0:02:56.1]} 12... b4
{[%clk 0:02:35.1]} 13. cxb4 {[%clk 0:02:53.5]} 13... Nxe4 {[%clk 0:02:34.9]} 14.
Qb3 {[%clk 0:02:53.5]} 14... O-O {[%clk 0:02:31.8]} 15. O-O {[%clk 0:02:52.1]}
15... d6 {[%clk 0:02:02.1]} 16. Rac1 {[%clk 0:02:50.6]} 16... Qb7 {[%clk
0:01:59.2]} 17. b5 {[%clk 0:02:50.5]} 17... axb5 {[%clk 0:01:57.9]} 18. Qxb5
{[%clk 0:02:48.1]} 18... Nd7 {[%clk 0:01:51.7]} 19. Bxe4 {[%clk 0:02:39.5]}
19... Qxb5 {[%clk 0:01:49]} 20. axb5 {[%clk 0:02:39.6]} 20... Bxe4 {[%clk
0:01:49.3]} 21. Rc7 {[%clk 0:02:40.3]} 21... Bf5 {[%clk 0:01:44.1]} 22. b6
{[%clk 0:02:38.3]} 22... Rb8 {[%clk 0:01:43.4]} 23. b7 {[%clk 0:02:37.9]} 23...
Bxb2 {[%clk 0:01:24.4]} 24. Ba7 {[%clk 0:02:36.4]} 1-0

[Event "Late-Titled-Tuesday-Blitz-March-05-2024"]
[Site "Chess.com"]
[Date "2024.03.05"]
[Round "2"]
[White "averageFM"]
[Black "baag"]
[Result "0-1"]
[WhiteElo "2581"]
[BlackElo "2846"]
[TimeControl "180+1"]
[EndTime "14:14:01 PST"]
[Termination "baag won by resignation"]

1. e4 {[%clk 0:03:00.9]} 1... c6 {[%clk 0:02:59.4]} 2. d4 {[%clk 0:02:58.9]}
2... d5 {[%clk 0:03:00.3]} 3. Nc3 {[%clk 0:02:52.8]} 3... dxe4 {[%clk
0:02:59.6]} 4. Nxe4 {[%clk 0:02:53.7]} 4... Nf6 {[%clk 0:03:00.1]} 5. Nxf6+
{[%clk 0:02:53.6]} 5... exf6 {[%clk 0:03:00.9]} 6. c3 {[%clk 0:02:54]} 6... Bd6
{[%clk 0:03:01.3]} 7. Bd3 {[%clk 0:02:54.5]} 7... O-O {[%clk 0:03:02.1]} 8. Ne2
{[%clk 0:02:55]} 8... Re8 {[%clk 0:03:02.4]} 9. O-O {[%clk 0:02:54.6]} 9... Nd7
{[%clk 0:02:52.9]} 10. Ng3 {[%clk 0:02:54]} 10... g6 {[%clk 0:02:52]} 11. f4
{[%clk 0:02:52.8]} 11... f5 {[%clk 0:02:51.8]} 12. Bd2 {[%clk 0:02:40.7]} 12...
Nf6 {[%clk 0:02:51.8]} 13. Re1 {[%clk 0:02:39.8]} 13... Be6 {[%clk 0:02:50.3]}
14. Qc2 {[%clk 0:02:37.4]} 14... Qc7 {[%clk 0:02:49]} 15. Re5 {[%clk 0:02:25.8]}
15... c5 {[%clk 0:02:36.2]} 16. Be3 {[%clk 0:01:51.9]} 16... Ng4 {[%clk
0:02:26.8]} 17. Nxf5 {[%clk 0:01:22.4]} 17... Bxf5 {[%clk 0:02:18.2]} 18. Bxf5
{[%clk 0:01:21.7]} 18... Nxe3 {[%clk 0:02:18.1]} 19. Qe4 {[%clk 0:01:16.5]}
19... Bxe5 {[%clk 0:02:15.8]} 0-1

[Event "Late-Titled-Tuesday-Blitz-March-05-2024"]
[Site "Chess.com"]
[Date "2024.03.05"]
[Round "2"]
[White "Jimonios"]
[Black "Jahonas"]
[Result "0-1"]
[WhiteElo "2611"]
[BlackElo "2399"]
[TimeControl "180+1"]
[EndTime "14:14:15 PST"]
[Termination "Jahonas won by resignation"]

1. Na3 {[%clk 0:03:00.9]} 1... d5 {[%clk 0:02:59.5]} 2. c3 {[%clk 0:03:01.2]}
2... Nf6 {[%clk 0:02:59.7]} 3. d3 {[%clk 0:03:00.7]} 3... c5 {[%clk 0:02:59.9]}
4. Nc2 {[%clk 0:03:00.9]} 4... Nc6 {[%clk 0:03:00.2]} 5. Qd2 {[%clk 0:03:01.6]}
5... e5 {[%clk 0:03:00.1]} 6. Kd1 {[%clk 0:03:02.5]} 6... Bg4 {[%clk 0:02:58.4]}
7. Qe1 {[%clk 0:03:03.4]} 7... e4 {[%clk 0:02:57.7]} 8. f3 {[%clk 0:03:02.5]}
8... exd3 {[%clk 0:02:55.8]} 9. exd3+ {[%clk 0:03:01.4]} 9... Be6 {[%clk
0:02:55.5]} 10. Nh3 {[%clk 0:03:01.9]} 10... Bd6 {[%clk 0:02:55.1]} 11. Nf4
{[%clk 0:02:53.5]} 11... Bxf4 {[%clk 0:02:54.3]} 12. Bxf4 {[%clk 0:02:53.5]}
12... O-O {[%clk 0:02:54.5]} 13. Qh4 {[%clk 0:02:46.7]} 13... d4 {[%clk
0:02:42.5]} 14. c4 {[%clk 0:02:46.1]} 14... Qb6 {[%clk 0:02:40.6]} 15. Kc1
{[%clk 0:02:45.1]} 15... Rfe8 {[%clk 0:02:38.6]} 16. g4 {[%clk 0:02:45]} 16...
Nb4 {[%clk 0:02:36.9]} 17. g5 {[%clk 0:02:40.9]} 17... Nd7 {[%clk 0:02:22.8]}
18. Bd2 {[%clk 0:02:40.5]} 18... a5 {[%clk 0:02:11.9]} 19. Qf4 {[%clk
0:02:28.5]} 19... Nf8 {[%clk 0:02:01.8]} 20. h4 {[%clk 0:02:27.6]} 20... Ng6
{[%clk 0:01:58.7]} 21. Qg3 {[%clk 0:02:25.4]} 21... Bf5 {[%clk 0:01:58.1]} 22.
f4 {[%clk 0:02:25.7]} 22... Qc6 {[%clk 0:01:53.6]} 23. Bg2 {[%clk 0:02:24.4]}
23... Nxd3+ {[%clk 0:01:50.9]} 24. Kb1 {[%clk 0:02:18.8]} 24... Qb6 {[%clk
0:01:49.8]} 25. Bc1 {[%clk 0:02:09.5]} 25... Ngxf4 {[%clk 0:01:45]} 0-1